[Event "85th Tata Steel Challengers 2023"]
[Site "Wijk aan Zee"]
[Date "2023.01.24"]
[Round "9.4"]
[White "Beerdsen, Thomas"]
[Black "Warmerdam, Max"]
[Result "0-1"]
[ECO "B96"]
[WhiteElo "2515"]
[BlackElo "2616"]
[Annotator "TA"]
[PlyCount "110"]
[EventDate "2023.01.10"]
[EventType "tourn"]
[EventCountry "NED"]
[SourceTitle "playchess.com"]
[Source "ChessBase"]
[SourceQuality "1"]
[TimeControl "40/6000+30:30/3000+30:900+30"]

{[%evp 15,110,18,30,0,35,25,54,50,65,34,46,37,43,45,52,28,36,0,62,51,49,50,108,51,47,42,62,0,77,0,0,-40,-43,-35,0,0,137,0,0,0,0,0,0,0,0,-7,-8,-40,0,0,0,-56,-44,-38,-18,-27,0,0,0,-212,0,0,0,-219,-102,-108,-76,-229,-207,-265,-207,-239,-197,-267,-279,-341,-353,-360,-368,-519,-301,-264,-291,-275,-288,-301,-285,-341,-331,-384,-381,-414,-414,-415,-406,-487,-460]} 1. e4 {[%emt 0:00:03]} c5 {[%emt 0:00:04]} 2. Nf3 {[%emt 0:00:06]} d6 {[%emt 0:00:05]} 3. d4 {[%emt 0:00:06]} cxd4 {[%emt 0:00:04]} 4. Nxd4 {[%emt 0:00:04]} Nf6 {[%emt 0:00:06]} 5. Nc3 {[%emt 0:00:06]} a6 {[%emt 0:00:03]} 6. Bg5 {[%emt 0:00:27]} e6 {[%emt 0:00:06]} 7. f4 {[%emt 0:00:09]} h6 {[%emt 0:00:07]} 8. Bh4 {[%emt 0:00:06]} Qb6 {[%emt 0:00:03]} 9. Qd3 {[%emt 0:00:05] B96: Sicilian Najdorf: 6 Bg5 e6 7 f4, lines other than 7...Qb6 and 7...Be7.} Nc6 {[%emt 0:00:53]} 10. Nb3 {[%emt 0:24:42] [#]} Qc7 $146 {[%emt 0:01:18]} ({Predecessor:} 10... Be7 11. Bf2 Qc7 12. Be2 b5 13. Bf3 Bb7 14. a4 Nb4 15. Qe2 bxa4 16. Rxa4 d5 {½-½ Li,Z-Maninang,R CHN-PHI m Manila 1977 (1.5)}) 11. O-O-O {[%emt 0:02:07] White is slightly better.} b5 {[%emt 0:00:41][%cal Bb7b5,Bb5b4][%mdl 32]} 12. Be2 {[%emt 0:07:26]} b4 {[%emt 0:28:29]} 13. Na4 {[%emt 0:04:22]} Be7 {[%emt 0:02:11]} 14. Bxf6 {[%emt 0:14:42]} gxf6 {[%emt 0:00:43]} 15. Qe3 {[%emt 0:05:21]} (15. Nd2 $5 {[%cal Rd2c4]}) 15... Rb8 {[%emt 0:12:58]} 16. Rd2 {[%emt 0:02:10]} Na7 {[%emt 0:15:23]} (16... e5 $11) 17. Rhd1 $1 $14 {[%emt 0:05:31]} Nb5 {[%emt 0:00:24]} 18. Kb1 {[%emt 0:05:02]} h5 {[%emt 0:20:11]} ({Black should try} 18... Bd7 $14) 19. Qg3 {[%emt 0:12:43]} (19. c3 $16) 19... Kf8 $1 {[%emt 0:01:33] [#]} 20. f5 $1 {[%emt 0:03:53]} e5 {[%emt 0:00:44]} (20... h4 21. Qf4) 21. Qe3 {[%emt 0:01:38]} ({White should play} 21. c4 $14) 21... Qa7 {[%emt 0:08:28]} (21... Bd7 $11 {remains equal.}) 22. Qf3 {[%emt 0:06:36]} (22. Qxa7 $16 Nxa7 23. Na5) 22... Bd7 {[%emt 0:03:17]} 23. g4 {[%emt 0:06:56]} hxg4 {[%emt 0:00:47]} 24. Qxg4 {[%emt 0:00:07][%cal Oa4c5]} Rg8 {[%emt 0:00:14]} 25. Qh5 {[%emt 0:00:36]} Qe3 {[%emt 0:01:27] [#]} (25... Rc8 $11 {keeps the balance.}) 26. Bc4 {[%emt 0:01:43]} (26. Nac5 $1 $16 dxc5 27. Rxd7) 26... Be8 $11 {[%emt 0:00:37]} 27. h4 {[%emt 0:00:28] Repels Qg5} Bd8 {[%emt 0:01:06]} 28. Bd5 {[%emt 0:03:07]} Nc7 {[%emt 0:01:54][%cal Oc7d5] ...Nxd5! would be deadly.} 29. Bc4 {[%emt 0:00:58]} Nb5 {[%emt 0:00:23]} 30. Bd5 $132 {[%emt 0:00:25][%mdl 2048] White puts up resistance} Qf4 {[%emt 0:01:16]} 31. Qh7 {[%emt 0:02:44]} Rg7 {[%emt 0:00:06]} 32. Qh8+ {[%emt 0:00:06]} Rg8 {[%emt 0:00:03] Some like it hot} 33. Qh7 {[%emt 0:00:08]} Qg4 {[%emt 0:03:20]} 34. Qh6+ $1 {[%emt 0:00:20]} Ke7 {[%emt 0:03:02]} 35. Bc4 {[%emt 0:00:34]} Bc7 {[%emt 0:00:15]} (35... Qxe4 $5 36. Bxb5 {[%mdl 64] Remove Defender} Bxb5 37. Rxd6 Qxf5 $11) 36. Qe3 {[%emt 0:01:16][%cal Oa4c5]} Qg3 {[%emt 0:00:32]} 37. Qh6 {[%emt 0:01:00]} (37. Qe2 $1 $11 {and White stays safe.}) 37... Qg7 {[%emt 0:00:33]} 38. Qe3 {[%emt 0:00:26][%cal Ob3c5]} Qg3 {[%emt 0:00:05]} 39. Qh6 {[%emt 0:00:32] [#]} Qf4 {[%emt 0:05:18]} (39... Rg4 $1 $19 {[%cal Rg4h4]} 40. Rd3 Qxh4 41. Qxh4 Rxh4) 40. Qh7 $17 {[%emt 0:00:39]} Qg4 {[%emt 0:00:54]} 41. Qh6 $2 {[%emt 0:20:26] Loses the game.} (41. Rd3 $17) 41... Qxe4 $19 {[%emt 0:11:02]} 42. Bd5 {[%emt 0:04:04]} ({Don't play} 42. Qh7 Rg4 43. Bd5 Rxh4 $19) 42... Qg4 {[%emt 0:00:28]} 43. Qe3 {[%emt 0:03:09]} Qg3 {[%emt 0:01:00] Dodges h5} (43... Qxf5 $2 44. Rf2 Qh5 45. Rdf1) 44. Qh6 {[%emt 0:01:45]} (44. Qe2 $142) 44... Rg4 {[%emt 0:04:36]} 45. h5 {[%emt 0:01:43]} Qf4 {[%emt 0:01:04]} 46. Qh7 {[%emt 0:02:44][%cal Oa4c5]} Qg5 {[%emt 0:02:12]} 47. Rh1 {[%emt 0:06:44]} (47. h6 $142 Rh4 48. Qg7) 47... Rg1+ {[%emt 0:00:23]} 48. Rd1 {[%emt 0:00:26]} Qg7 {[%emt 0:02:23]} 49. Qxg7 {[%emt 0:00:50]} Rxg7 {[%emt 0:00:04][%cal Bg1g7,Bg7h7,Bh7h6][%mdl 32]} 50. h6 {[%emt 0:01:26]} Rh7 {[%emt 0:00:16] Hoping for ...Na7.} 51. Nd2 {[%emt 0:02:34]} Bd7 {[%emt 0:01:56]} 52. Rh5 {[%emt 0:01:00]} Rbh8 {[%emt 0:01:05]} 53. Rdh1 {[%emt 0:00:10]} Nd4 $1 {[%emt 0:00:09][%csl LRa4,LRf5]} 54. b3 {[%emt 0:00:05]} Nxf5 {[%emt 0:00:23] And now ...Ng3 would win.} (54... Bxf5 $2 {perishes.} 55. Nf3 Bxc2+ 56. Kc1 Nxf3 57. Kxc2 Nd4+ 58. Kd1 $19) 55. Be4 {[%emt 0:00:21]} Rxh6 {[%emt 0:00:09] A cool game by Warmerdam.   Weighted Error Value: White=0.32/Black=0.26 (precise)} 0-1

[Event "85th Tata Steel Challengers 2023"]
[Site "Wijk aan Zee"]
[Date "2023.01.24"]
[Round "9.5"]
[White "Sindarov, Javokhir"]
[Black "Mishra, Abhimanyu"]
[Result "1-0"]
[ECO "B90"]
[WhiteElo "2654"]
[BlackElo "2559"]
[Annotator "TA"]
[PlyCount "69"]
[EventDate "2023.01.10"]
[EventType "tourn"]
[EventCountry "NED"]
[SourceTitle "playchess.com"]
[Source "ChessBase"]
[SourceQuality "1"]
[TimeControl "40/6000+30:30/3000+30:900+30"]

{[%evp 9,69,20,29,21,9,10,18,0,8,0,0,0,21,8,13,12,21,23,60,31,26,22,22,29,30,0,54,43,64,71,59,64,89,81,134,130,189,178,212,156,166,128,376,362,493,474,694,633,671,604,609,637,647,642,645,637,811,811,785,783,754,736]} 1. e4 {[%emt 0:00:23]} c5 {[%emt 0:00:06]} 2. Nf3 {[%emt 0:01:04]} d6 {[%emt 0:00:15]} 3. d4 {[%emt 0:00:16]} cxd4 {[%emt 0:00:06]} 4. Nxd4 {[%emt 0:00:09]} Nf6 {[%emt 0:00:17]} 5. Nc3 {[%emt 0:01:20]} a6 {[%emt 0:00:14]} 6. Qd3 {[%emt 0:02:21] B90: Sicilian Najdorf: Unusual White 6th moves, 6 Be3 Ng4 and 6 Be3 e5.} Nbd7 {[%emt 0:01:05]} 7. Be2 {[%emt 0:01:29]} b5 {[%emt 0:01:57]} 8. Nd5 {[%emt 0:02:58] The position is equal.} Bb7 {[%emt 0:00:32] Repels Nc6} 9. a4 {[%emt 0:00:57] [#]} bxa4 $146 {[%emt 0:00:33]} ({Predecessor:} 9... Nc5 10. Nxf6+ gxf6 11. Qe3 bxa4 12. f3 h5 13. Qf2 e6 14. O-O Qb6 15. b3 axb3 16. Nxb3 {1-0 Vidit,S (2723)-Wei,Y (2727) Chessable Masters Prelim rapid 2022 (11)}) 10. Nxf6+ {[%emt 0:25:41]} (10. Rxa4 Nxd5 11. exd5 Nc5 $17) 10... Nxf6 {[%emt 0:00:48]} 11. f3 {[%emt 0:02:19]} (11. Rxa4 Bxe4 12. Qb3 e5 $15) 11... g6 {[%emt 0:00:44]} (11... e5 $5 12. Nf5 $8 d5 $11) 12. Rxa4 {[%emt 0:06:49]} Nd7 {[%emt 0:17:06]} 13. Nb3 {[%emt 0:08:11]} Ne5 {[%emt 0:12:22]} 14. Qe3 {[%emt 0:01:40]} (14. Qc3 $5 {[%cal Rf3f4]} Rc8 15. Qd2 $14) 14... Bg7 {[%emt 0:01:33]} 15. Bd2 {[%emt 0:00:39]} Qd7 {[%emt 0:03:17]} 16. Ra3 {[%emt 0:04:23]} O-O {[%emt 0:07:23]} 17. Bc3 {[%emt 0:01:10]} Rfc8 {[%emt 0:11:08]} (17... Bc6 $11) 18. O-O $14 {[%emt 0:02:57]} Nc6 {[%emt 0:09:39]} 19. Bxg7 {[%emt 0:07:28]} Kxg7 {[%emt 0:00:07]} 20. Nd2 {[%emt 0:01:53]} Qe6 {[%emt 0:08:25]} 21. Nc4 {[%emt 0:02:02] Hoping for Nb6.} Rc7 {[%emt 0:02:05]} ({Black should play} 21... Rab8) 22. Nb6 {[%emt 0:01:53] White is more active.} Rb8 {[%emt 0:01:39] [#]} (22... Rf8 $16 {is a better defense.} 23. Nd5 (23. Bxa6 Bxa6 24. Rxa6 Nb8 $14) 23... Rcc8) 23. Rc3 $1 $18 {[%emt 0:03:50]} ({Don't take} 23. Bxa6 $6 Bxa6 24. Rxa6 Qe5 $14) 23... f5 {[%emt 0:07:27]} 24. Bc4 {[%emt 0:08:14][%cal Be2c4,Bc4b3,Bb3e6][%mdl 32]} Qe5 {[%emt 0:00:13]} 25. Bb3 {[%emt 0:00:42] f4 is the strong threat.} Rf8 $2 {[%emt 0:06:57] A mistake that costs the game.} (25... fxe4 $16 26. fxe4 e6) 26. f4 {[%emt 0:03:05]} Qa5 {[%emt 0:05:26]} 27. Be6 {[%emt 0:01:55] White is clearly winning.} Rf6 {[%emt 0:00:58] [#]} (27... fxe4 $142 28. f5 Bc8 29. Nxc8 Ne5) 28. b4 $1 {[%emt 0:02:10][%mdl 576] Decoy} Qxb4 {[%emt 0:05:36]} 29. Nd5 {[%emt 0:00:11][%cal Bb6d5,Bd5c7,Bc7e8,Be8f6,Bf6h7][%mdl 32]} Qxe4 {[%emt 0:00:50]} 30. Qxe4 {[%emt 0:00:15]} ({Inferior is} 30. Nxf6 Qxe3+ 31. Rxe3 Kxf6 $15) 30... fxe4 {[%emt 0:00:04]} 31. Nxc7 {[%emt 0:00:04] Strongly threatening Ne8+.} Nd4 {[%emt 0:00:05]} 32. Ne8+ {[%emt 0:00:13]} Kf8 {[%emt 0:00:06]} 33. Nxf6 {[%emt 0:00:04]} Ne2+ {[%emt 0:00:07]} 34. Kf2 {[%emt 0:00:03]} Nxc3 {[%emt 0:00:05]} 35. Nxh7+ {[%emt 0:00:03] Weighted Error Value: White=0.11 (very precise) /Black=0.46} 1-0

[Event "85th Tata Steel Challengers 2023"]
[Site "Wijk aan Zee"]
[Date "2023.01.24"]
[Round "9.6"]
[White "Adhiban, B.."]
[Black "Roebers, Eline"]
[Result "1-0"]
[ECO "A17"]
[WhiteElo "2610"]
[BlackElo "2361"]
[Annotator "TA"]
[PlyCount "81"]
[EventDate "2023.01.10"]
[EventType "tourn"]
[EventCountry "NED"]
[SourceTitle "playchess.com"]
[Source "ChessBase"]
[SourceQuality "1"]
[TimeControl "40/6000+30:30/3000+30:900+30"]

{[%evp 9,80,-6,23,22,28,29,21,-5,22,-12,38,43,45,27,35,18,34,29,29,18,30,0,64,62,76,58,136,135,108,-11,-11,-11,-12,-45,481,322,339,326,520,488,525,526,522,518,504,0,423,0,503,492,465,458,433,437,29992,5998,5410,5406,1260,668,659,628,542,546,29995,29996,29996,29997,29997,29998,29998,29999,29999]} 1. Nf3 {[%emt 0:01:02]} Nf6 {[%emt 0:00:10]} 2. c4 {[%emt 0:00:06]} e6 {[%emt 0:00:06]} 3. Nc3 {[%emt 0:00:05]} Bb4 {[%emt 0:00:28]} 4. g4 {[%emt 0:00:06]} h6 {[%emt 0:03:17]} 5. Rg1 {[%emt 0:00:06]} b6 {[%emt 0:09:54]} 6. Qb3 {[%emt 0:00:22] A17: English Opening: 1...Nf6 with ...Bb4.} Be7 {[%emt 0:05:07]} 7. d4 {[%emt 0:10:04]} Bb7 {[%emt 0:04:18] [#]} 8. g5 $146 {[%emt 0:00:49] The position is equal.} ({Predecessor:} 8. d5 Na6 9. e4 Nc5 10. Qc2 exd5 11. exd5 c6 12. dxc6 Bxc6 13. Ne5 Qc7 14. Nxc6 dxc6 {0-1 Malinin,Y (2186)-Butvilas,A (2061) Panevezys op-A 2019 (9)}) 8... hxg5 {[%emt 0:00:36]} 9. Bxg5 {[%emt 0:00:03]} d6 {[%emt 0:04:33]} (9... Bxf3 $11 10. exf3 c5) 10. O-O-O $14 {[%emt 0:01:39]} Nbd7 {[%emt 0:04:02]} 11. h4 {[%emt 0:02:27]} a6 {[%emt 0:06:11]} 12. Bh3 {[%emt 0:06:54]} Nh5 {[%emt 0:10:18]} 13. d5 {[%emt 0:09:44]} e5 {[%emt 0:03:13]} 14. Bxd7+ {[%emt 0:03:36]} (14. Be3 {simplifies} Bc8 15. Qc2 Ndf6 16. Bxc8 Qxc8 17. Bg5) 14... Qxd7 {[%emt 0:00:08]} 15. c5 {[%emt 0:00:09] Hoping for c6.} Qd8 {[%emt 0:05:17]} (15... Bc8 $1 $11) 16. Bxe7 {[%emt 0:14:23]} Kxe7 {[%emt 0:05:09]} 17. Ne4 {[%emt 0:17:40][%cal Of3e5] Threatens to win with Nxe5!} Bc8 {[%emt 0:05:29] [#]} (17... Nf6 $14) 18. Nxe5 $1 $16 {[%emt 0:15:11][%mdl 512] White has more active pieces.} dxe5 {[%emt 0:00:17]} 19. d6+ {[%emt 0:05:00]} (19. Ng5 $1 $16 {Threatening mate with d6+.} Ke8 20. d6) 19... cxd6 $1 $11 {[%emt 0:11:28]} (19... Kf8 $2 20. Ng5 Qf6 21. dxc7 $18 (21. cxb6 $2 cxb6 22. Qd5 Ra7 $19)) 20. Rxd6 {[%emt 0:01:52]} Qc7 {[%emt 0:15:27] White must now prevent ...Bf5.} 21. Rg5 {[%emt 0:05:43][%cal Bg1g5,Bg5e5,Be5f5,Bf5f6,Bf6g6,Bg6f6,Bf6f7][%mdl 32] Prevents Bf5. Really sharp!} (21. Qxb6 $2 Qxb6 22. Rxb6 Be6 $19) (21. Qd5 $5 {[%cal Rd5a8]} Bb7 22. c6 Bxc6 23. Rxc6 Qxc6+ 24. Qxc6 $15) 21... bxc5 $2 {[%emt 0:03:09][%mdl 8192] White now steadily converts the win.} (21... Be6 $15 {stays ahead.} 22. Rxe5 Rh6) 22. Rxe5+ $18 {[%emt 0:01:13]} (22. Qd5 Bb7 23. Qxe5+ Kf8 $14) 22... Kf8 {[%emt 0:00:02][%cal Oh5f6] ...Nf6! is the strong threat.} 23. Ng5 $1 {[%emt 0:02:12][%cal Od6d8] White threatens Rd8+! and mate.} (23. Qa4 $2 Bb7 24. Rxc5 Qe7 $19) 23... Bb7 {[%emt 0:04:58] [#]} (23... Qxd6 $2 24. Qxf7#) (23... Bg4 {might work better.}) 24. Rf5 $1 {[%emt 0:01:28][%cal Rf5f7]} Nf6 {[%emt 0:01:17]} (24... Qxd6 $2 25. Qxf7#) 25. Rdxf6 {[%emt 0:01:10]} gxf6 {[%emt 0:00:35]} 26. Rxf6 {[%emt 0:00:05]} Kg8 {[%emt 0:02:35]} 27. Rg6+ $40 {[%emt 0:00:49][%mdl 128] White mounts an attack.} Kf8 {[%emt 0:00:05]} 28. Rf6 {[%emt 0:00:12][%cal Rf6f7]} Kg8 {[%emt 0:00:03]} (28... Rxh4 29. Rxf7+ (29. Qxf7+ Qxf7 30. Rxf7+ Kg8 $15) 29... Kg8 30. Rxc7+ Kh8 31. Qc3+ Rd4 32. Qh3+) 29. Rxf7 {[%emt 0:01:28]} c4 {[%emt 0:00:06] [#]} 30. Qb4 {[%emt 0:02:27]} (30. Qxb7 Qxb7 31. Rxb7 Rxh4 $11) (30. Qc3 Qxf7 31. Nxf7 Kxf7 $16) 30... a5 {[%emt 0:01:59] [#] Strongly threatening ...Qxf7.} 31. Qb5 $1 {[%emt 0:06:15]} (31. Qc3 Qxf7 32. Nxf7 Kxf7 $16) 31... Ba6 {[%emt 0:04:42]} (31... Qxf7 $18 32. Nxf7 Kxf7 33. Qxb7+ Kg6 34. Qg2+ Kh7 35. Qe4+ Kg7 36. Qe7+ (36. Qxc4 $2 Rac8 $19) 36... Kh6 37. Qg5+ Kh7) 32. Qd5 {[%emt 0:00:47]} (32. Qf5 $142 Qc6 33. Rh7 (33. Qxa5 $2 c3 $19) 33... Qh1+ 34. Kc2 Qd1+ {[%mdl 64] Decoy} 35. Kxd1 Rd8+ 36. Kc1 Rd1+ 37. Kxd1 Rxh7 38. Qxh7+ Kf8 39. Qf7#) 32... Bb7 {[%emt 0:00:06]} 33. Qe6 {[%emt 0:00:58][%cal Re6g6]} ({Stronger than} 33. Rxc7+ Bxd5 34. e4 Rf8 35. exd5 Rxh4 $15) ({And not} 33. Qxb7 Qxb7 34. Rxb7 Rxh4 $11) 33... Qc6 {[%emt 0:00:12]} 34. Qe5 {[%emt 0:00:42][%csl Gf7][%cal Re5g7]} ({Worse is} 34. Rxb7+ Qxe6 35. Nxe6 Rxh4 $11) 34... Qh1+ {[%emt 0:00:29]} 35. Kc2 {[%emt 0:00:13][%csl Gf7][%cal Re5g7]} Be4+ {[%emt 0:00:27]} 36. Nxe4 {[%emt 0:00:09][%csl Gf7][%cal Re5g7,Bg5e4,Be4d6,Bd6f5][%mdl 32]} Kxf7 {[%emt 0:00:04]} 37. Nd6+ {[%emt 0:00:17] White mates.} Kg6 {[%emt 0:00:26]} 38. Qg5+ {[%emt 0:00:24]} Kh7 {[%emt 0:00:06]} 39. Qh5+ {[%emt 0:00:06]} Kg7 {[%emt 0:00:05]} 40. Qf7+ {[%emt 0:00:03]} Kh6 {[%emt 0:00:04]} 41. Nf5# {[%emt 0:00:02] Magnificent play by Adhiban!   Weighted Error Value: White=0.53/Black=0.65} 1-0

[Event "85th Tata Steel Challengers 2023"]
[Site "Wijk aan Zee"]
[Date "2023.01.24"]
[Round "9.7"]
[White "Pechac, Jergus"]
[Black "Supi, Luis Paulo"]
[Result "1/2-1/2"]
[ECO "D35"]
[WhiteElo "2637"]
[BlackElo "2608"]
[Annotator "TA"]
[PlyCount "75"]
[EventDate "2023.01.10"]
[EventType "tourn"]
[EventCountry "NED"]
[SourceTitle "playchess.com"]
[Source "ChessBase"]
[SourceQuality "1"]
[TimeControl "40/6000+30:30/3000+30:900+30"]

{[%evp 9,75,24,13,0,4,0,38,22,27,10,17,0,14,12,16,9,0,0,0,-2,0,0,11,0,7,-17,-2,-20,0,-28,4,-10,2,-61,27,39,102,21,20,28,36,37,40,37,31,19,22,13,31,0,18,0,1,-46,0,0,0,0,0,0,0,0,0,0,0,0,0,0]} 1. d4 {[%emt 0:00:04]} d5 {[%emt 0:00:19]} 2. c4 {[%emt 0:00:15]} e6 {[%emt 0:00:02]} 3. Nc3 {[%emt 0:00:18]} Be7 {[%emt 0:00:03]} 4. Bf4 {[%emt 0:00:27]} Nf6 {[%emt 0:00:45]} 5. e3 {[%emt 0:00:12]} O-O {[%emt 0:00:26]} 6. a3 {[%emt 0:00:27] D35: Queen's Gambit Declined: Exchange Variation.} b6 {[%emt 0:00:58]} 7. cxd5 {[%emt 0:00:21]} exd5 {[%emt 0:00:50]} 8. Bd3 {[%emt 0:01:43] White is slightly better.} c5 {[%emt 0:00:41]} 9. Nge2 {[%emt 0:01:13]} Bb7 {[%emt 0:03:06]} 10. Qc2 {[%emt 0:05:56] [#]} Nc6 $146 {[%emt 0:02:24]} (10... c4 $5 11. Bf5 $8 Re8 $11) ({Predecessor:} 10... Nbd7 11. O-O Rc8 12. Bf5 h6 13. Rfd1 c4 14. Nb5 a6 15. Nd6 Bxd6 16. Bxd6 Re8 {1-0 Mikhailovsky,V (2184)-Krishnan,V (2203) Titled Tuesday intern op 22 Mar Early blitz 2022 (6)}) 11. dxc5 {[%emt 0:05:32]} bxc5 {[%emt 0:06:32]} 12. O-O {[%emt 0:00:18]} g6 {[%emt 0:04:30]} 13. Rfd1 {[%emt 0:00:51][%cal Od3c4]} Qc8 {[%emt 0:01:26] ...c4 is the strong threat.} 14. Ng3 {[%emt 0:02:51]} Rd8 {[%emt 0:09:52]} 15. Bf1 {[%emt 0:17:54]} Qe6 {[%emt 0:07:11]} 16. Na4 {[%emt 0:03:45][%cal Bc3a4,Ba4b2,Bb2d3,Bd3f4][%mdl 32]} c4 {[%emt 0:04:31]} 17. b3 {[%emt 0:00:23][%cal Rb3c4]} Na5 {[%emt 0:02:36]} 18. bxc4 {[%emt 0:00:15]} Nxc4 {[%emt 0:00:09]} ({But not} 18... dxc4 19. Bc7 Nb3 20. Bxd8 Nxa1 21. Qb2 Rxd8 22. Rxd8+ Bxd8 23. Qxb7) 19. Qb3 {[%emt 0:02:19]} Rd7 {[%emt 0:04:47]} 20. Nb2 {[%emt 0:07:35][%cal Rb2c4]} Rc8 {[%emt 0:04:25]} 21. Ne2 {[%emt 0:10:27]} (21. Rab1 $11) 21... Nh5 {[%emt 0:04:06]} ({Black should try} 21... Ne4 $15 22. Nxc4 dxc4) 22. Nd4 $11 {[%emt 0:02:54]} Qf6 {[%emt 0:02:35]} (22... Qa6 $14) 23. Qb5 {[%emt 0:02:51]} ({White should play} 23. Nxc4 $16 dxc4 24. Qb5) 23... Nb6 {[%emt 0:04:46]} 24. Nd3 {[%emt 0:04:20] Strongly threatening Be5.} Nxf4 {[%emt 0:01:52]} 25. Nxf4 {[%emt 0:01:34]} Bd6 {[%emt 0:01:26]} 26. g3 {[%emt 0:01:10]} Rdc7 {[%emt 0:06:32]} 27. Bh3 {[%emt 0:04:07]} Rc5 {[%emt 0:02:22]} 28. Qb3 {[%emt 0:02:27]} Rb8 {[%emt 0:03:21]} 29. a4 {[%emt 0:04:27]} Ba6 {[%emt 0:05:42] White must now prevent ...Nc4.} (29... Nc4 $5 {[%cal Rb7c8]} 30. Rab1 Bc8 31. Qxb8 (31. Nxd5 $2 Qe5 $19) 31... Bxb8 32. Rxb8 Nb6 $11) 30. Rab1 {[%emt 0:04:47]} Bc4 {[%emt 0:02:03]} 31. Qb4 {[%emt 0:02:02]} (31. Qb2 $11) 31... Qd8 {[%emt 0:05:53]} (31... Rb5 $1 $15 32. Qxb5 Bxb5 33. axb5 Bxf4 34. gxf4 Rb7) 32. Qb2 {[%emt 0:05:33][%cal Od4e6] [#] Threatens to win with Nde6! The position is equal.} Be5 {[%emt 0:06:41]} (32... Nxa4 33. Qa1 Rxb1 34. Rxb1 $16) 33. Qa3 {[%emt 0:01:20]} Bd6 {[%emt 0:05:16][%cal Oc5b5]} 34. Qa1 {[%emt 0:01:41][%cal Od4e6] Hoping for Nde6!} Be5 $1 {[%emt 0:00:57]} 35. Qa3 {[%emt 0:09:59]} Bd6 {[%emt 0:01:03][%cal Oc5b5]} 36. Qa1 {[%emt 0:02:36][%cal Od4e6] [#] aiming for Nde6!} Be5 $1 {[%emt 0:00:52]} 37. Qa3 {[%emt 0:02:41]} Bd6 {[%emt 0:02:17]} 38. Qa1 {[%emt 0:00:52] Weighted Error Value: White=0.15 (very precise) /Black=0.11 (very precise)} 1/2-1/2

[Event "85th Tata Steel Challengers 2023"]
[Site "Wijk aan Zee"]
[Date "2023.01.20"]
[Round "10.1"]
[White "Yilmaz, Mustafa"]
[Black "Adhiban, B.."]
[Result "1/2-1/2"]
[ECO "A33"]
[WhiteElo "2609"]
[BlackElo "2610"]
[Annotator "TA"]
[PlyCount "53"]
[EventDate "2023.01.10"]
[EventType "tourn"]
[EventCountry "NED"]
[SourceTitle "playchess.com"]
[Source "ChessBase"]
[SourceQuality "1"]
[TimeControl "40/6000+30:30/3000+30:900+30"]

{[%evp 12,53,11,0,7,10,0,18,12,0,2,-7,15,-2,32,20,35,19,34,39,41,32,29,25,49,59,55,48,68,52,66,72,60,50,53,43,50,18,13,14,21,20,25,25]} 1. Nf3 {[%emt 0:00:05]} c5 {[%emt 0:00:53]} 2. c4 {[%emt 0:00:11]} Nc6 {[%emt 0:00:34]} 3. d4 {[%emt 0:01:33]} cxd4 {[%emt 0:00:06]} 4. Nxd4 {[%emt 0:00:06]} Nf6 {[%emt 0:00:22]} 5. Nc3 {[%emt 0:00:22]} e6 {[%emt 0:00:18]} 6. a3 {[%emt 0:01:26]} Be7 {[%emt 0:00:50]} 7. e4 {[%emt 0:02:03]} O-O {[%emt 0:00:10] A33: Symmetrical English: 2 Nf3 Nf6 3 d4 cxd4 4 Nxd4 e6 5 Nc3 Nc6.} 8. Nf3 {[%emt 0:00:47]} Qc7 {[%emt 0:00:22][%cal Od7d5]} 9. Be2 {[%emt 0:03:14]} b6 {[%emt 0:00:05] The position is equal.} 10. O-O {[%emt 0:02:25]} Bb7 {[%emt 0:00:04]} 11. Bg5 {[%emt 0:01:54]} a6 {[%emt 0:09:52] [#]} 12. Bh4 $146 {[%emt 0:08:32]} ({Predecessor:} 12. Rc1 Ng4 13. Bxe7 Nxe7 14. h3 Nf6 15. e5 Ne8 16. Qd4 Ng6 17. Ne4 f5 18. exf6 Nxf6 {0-1 Bu,X (2682)-Zhou,J (2650) CHN-chT 6th China 2010 (14)}) 12... Nh5 {[%emt 0:00:46]} 13. Re1 {[%emt 0:06:37]} Bxh4 {[%emt 0:02:17]} 14. Nxh4 {[%emt 0:00:02]} Nf4 {[%emt 0:00:06]} 15. Bf1 {[%emt 0:04:24]} Ne5 {[%emt 0:04:18]} 16. Rc1 {[%emt 0:04:25]} (16. Nf3 $5 {[%cal Rf3e5]}) 16... Rac8 {[%emt 0:01:54]} ({Weaker is} 16... Nxc4 17. Bxc4 Qxc4 18. Nd5 $16 (18. Qxd7 Nd3 $11)) 17. Nf3 {[%emt 0:03:23]} Nxf3+ {[%emt 0:11:22]} 18. Qxf3 {[%emt 0:00:07]} f5 {[%emt 0:00:06]} 19. Qe3 {[%emt 0:09:38]} fxe4 {[%emt 0:10:31]} 20. Nxe4 {[%emt 0:01:23]} Bxe4 {[%emt 0:06:15]} 21. Qxe4 {[%emt 0:00:06]} a5 {[%emt 0:00:09]} 22. Rcd1 {[%emt 0:05:33]} Nh5 {[%emt 0:01:39]} 23. Qe5 {[%emt 0:17:33]} Nf6 {[%emt 0:01:02]} 24. Qxc7 {[%emt 0:03:38]} Rxc7 {[%emt 0:00:04]} 25. Rd6 {[%emt 0:03:47]} Rb8 {[%emt 0:00:41]} 26. b3 {[%emt 0:06:05]} Kf7 {[%emt 0:00:34]} 27. Rd4 {[%emt 0:00:51] Weighted Error Value: White=0.07 (flawless) /Black=0.07 (flawless)} 1/2-1/2